[Event "Biel Festival Masters Blitz 2024"]
[White "Praggnanandhaa R"]
[Black "Le,Quang Liem"]
[Site "Biel"]
[Round "5.2"]
[Annotator "ChessBase"]
[Result "1-0"]
[Date "2024.07.21"]
[WhiteElo "2747"]
[BlackElo "2731"]
[PlyCount "225"]
[TimeControl "180+2"]

1. d4 {[%emt 0:0:1]} Nf6 {[%emt 0:0:1]} 2. Bg5 {[%emt 0:0:1]} d5 {[%emt 0:0:1]} 3. e3 {[%emt 0:0:1]} c5 {[%emt 0:0:3]} 4. Bxf6 {[%emt 0:0:1]} gxf6 {[%emt 0:0:2]} 5. dxc5 {[%emt 0:0:1]} Nc6 {[%emt 0:0:2]} 6. c3 {[%emt 0:0:2]} e6 {[%emt 0:0:4]} 7. b4 {[%emt 0:0:1]} a5 {[%emt 0:0:1]} 8. Bb5 {[%emt 0:0:1]} Bd7 {[%emt 0:0:10]} 9. Qb3 {[%emt 0:0:1]} Bg7 {[%emt 0:0:14]} 10. a4 {[%emt 0:0:1]} O-O {[%emt 0:0:8]} 11. Ne2 {[%emt 0:0:6]} f5 {[%emt 0:0:18]} 12. Ra3 {[%emt 0:0:12]} Ne5 {[%emt 0:0:10]} 13. O-O {[%emt 0:0:32]} b6 {[%emt 0:0:1]} 14. cxb6 {[%emt 0:0:14]} Qxb6 {[%emt 0:0:5]} 15. Bxd7 {[%emt 0:0:2]} Nxd7 {[%emt 0:0:1]} 16. Ra2 {[%emt 0:0:17]} Rfc8 {[%emt 0:0:6]} 17. Nd2 {[%emt 0:0:6]} Rc7 {[%emt 0:0:8]} 18. b5 {[%emt 0:0:29]} Rac8 {[%emt 0:0:1]} 19. Rc2 {[%emt 0:0:1]} Qd6 {[%emt 0:0:12]} 20. h3 {[%emt 0:0:14]} Nb6 {[%emt 0:0:6]} 21. Rfc1 {[%emt 0:0:1]} Rc5 {[%emt 0:0:17]} 22. Nd4 {[%emt 0:0:14]} f4 {[%emt 0:0:1]} 23. exf4 {[%emt 0:0:13]} Qxf4 {[%emt 0:0:7]} 24. Nc6 {[%emt 0:0:7]} Kh8 {[%emt 0:0:10]} 25. c4 {[%emt 0:0:2]} Rg8 {[%emt 0:0:17]} 26. Qa3 {[%emt 0:0:27]} Bd4 {[%emt 0:0:19]} 27. Nxd4 {[%emt 0:0:6]} Qxd4 {[%emt 0:0:1]} 28. Nf3 {[%emt 0:0:5]} Qg7 {[%emt 0:0:2]} 29. g3 {[%emt 0:0:5]} Rxc4 {[%emt 0:0:2]} 30. Nd2 {[%emt 0:0:11]} Rxa4 {[%emt 0:0:4]} 31. Qd6 {[%emt 0:0:0]} Qd4 {[%emt 0:0:3]} 32. Nf3 {[%emt 0:0:2]} Qf6 {[%emt 0:0:2]} 33. Ne5 {[%emt 0:0:4]} Nc4 {[%emt 0:0:12]} 34. Nxc4 {[%emt 0:0:1]} dxc4 {[%emt 0:0:1]} 35. Rxc4 {[%emt 0:0:3]} Rxc4 {[%emt 0:0:4]} 36. Rxc4 {[%emt 0:0:1]} Rd8 {[%emt 0:0:1]} 37. Qc7 {[%emt 0:0:5]} Rd1+ {[%emt 0:0:8]} 38. Kg2 {[%emt 0:0:0]} Qd8 {[%emt 0:0:15]} 39. Qe5+ {[%emt 0:0:4]} f6 {[%emt 0:0:0]} 40. Qxe6 {[%emt 0:0:1]} Qd5+ {[%emt 0:0:1]} 41. Qxd5 {[%emt 0:0:1]} Rxd5 {[%emt 0:0:1]} 42. b6 {[%emt 0:0:2]} Rb5 {[%emt 0:0:1]} 43. Rc8+ {[%emt 0:0:4]} Kg7 {[%emt 0:0:1]} 44. Rb8 {[%emt 0:0:3]} h5 {[%emt 0:0:3]} 45. h4 {[%emt 0:0:2]} a4 {[%emt 0:0:1]} 46. b7 {[%emt 0:0:1]} a3 {[%emt 0:0:1]} 47. Ra8 {[%emt 0:0:1]} Rxb7 {[%emt 0:0:1]} 48. Rxa3 {[%emt 0:0:0]} Kg6 {[%emt 0:0:2]} 49. Kf3 {[%emt 0:0:2]} Rb2 {[%emt 0:0:1]} 50. Rd3 {[%emt 0:0:1]} Ra2 {[%emt 0:0:2]} 51. Re3 {[%emt 0:0:4]} Rb2 {[%emt 0:0:1]} 52. Re2 {[%emt 0:0:0]} Rb3+ {[%emt 0:0:0]} 53. Kf4 {[%emt 0:0:1]} Rb4+ {[%emt 0:0:2]} 54. Re4 {[%emt 0:0:1]} Rb2 {[%emt 0:0:2]} 55. f3 {[%emt 0:0:0]} Rf2 {[%emt 0:0:4]} 56. Re8 {[%emt 0:0:2]} Rf1 {[%emt 0:0:4]} 57. Re2 {[%emt 0:0:1]} Kg7 {[%emt 0:0:3]} 58. Ke3 {[%emt 0:0:8]} Kg6 {[%emt 0:0:3]} 59. Ra2 {[%emt 0:0:1]} Re1+ {[%emt 0:0:2]} 60. Kf2 {[%emt 0:0:3]} Rb1 {[%emt 0:0:2]} 61. Re2 {[%emt 0:0:1]} Rb4 {[%emt 0:0:1]} 62. Kg2 {[%emt 0:0:1]} Ra4 {[%emt 0:0:2]} 63. Re3 {[%emt 0:0:2]} Ra2+ {[%emt 0:0:1]} 64. Kh3 {[%emt 0:0:0]} Ra1 {[%emt 0:0:4]} 65. Rb3 {[%emt 0:0:1]} Rh1+ {[%emt 0:0:5]} 66. Kg2 {[%emt 0:0:1]} Ra1 {[%emt 0:0:1]} 67. g4 {[%emt 0:0:0]} Ra5 {[%emt 0:0:5]} 68. Kg3 {[%emt 0:0:1]} Rc5 {[%emt 0:0:1]} 69. Re3 {[%emt 0:0:8]} Ra5 {[%emt 0:0:0]} 70. Re6 {[%emt 0:0:6]} Kf7 {[%emt 0:0:3]} 71. Re4 {[%emt 0:0:4]} Kg6 {[%emt 0:0:1]} 72. Kf4 {[%emt 0:0:1]} Rb5 {[%emt 0:0:6]} 73. Rc4 {[%emt 0:0:3]} Ra5 {[%emt 0:0:1]} 74. Rd4 {[%emt 0:0:1]} Rb5 {[%emt 0:0:0]} 75. Re4 {[%emt 0:0:1]} Ra5 {[%emt 0:0:1]} 76. Re6 {[%emt 0:0:3]} Ra4+ {[%emt 0:0:1]} 77. Kg3 {[%emt 0:0:1]} Kf7 {[%emt 0:0:4]} 78. Rd6 {[%emt 0:0:2]} Ra5 {[%emt 0:0:3]} 79. Kf4 {[%emt 0:0:4]} Ra4+ {[%emt 0:0:2]} 80. Kf5 {[%emt 0:0:1]} Ra5+ {[%emt 0:0:1]} 81. Ke4 {[%emt 0:0:0]} Ra4+ {[%emt 0:0:18]} 82. Rd4 {[%emt 0:0:2]} Ra1 {[%emt 0:0:1]} 83. gxh5 {[%emt 0:0:7]} Ra5 {[%emt 0:0:1]} 84. Rd5 {[%emt 0:0:1]} Ra4+ {[%emt 0:0:1]} 85. Kf5 {[%emt 0:0:1]} Rxh4 {[%emt 0:0:1]} 86. Rd7+ {[%emt 0:0:1]} Kf8 {[%emt 0:0:6]} 87. Rh7 {[%emt 0:0:3]} Kg8 {[%emt 0:0:0]} 88. Kg6 {[%emt 0:0:4]} Rh3 {[%emt 0:0:3]} 89. Rg7+ {[%emt 0:0:1]} Kf8 {[%emt 0:0:2]} 90. Rf7+ {[%emt 0:0:1]} Kg8 {[%emt 0:0:3]} 91. Rxf6 {[%emt 0:0:0]} Rg3+ {[%emt 0:0:0]} 92. Kh6 {[%emt 0:0:1]} Rh3 {[%emt 0:0:4]} 93. f4 {[%emt 0:0:5]} Ra3 {[%emt 0:0:1]} 94. f5 {[%emt 0:0:4]} Ra7 {[%emt 0:0:1]} 95. Rb6 {[%emt 0:0:1]} Rh7+ {[%emt 0:0:2]} 96. Kg5 {[%emt 0:0:1]} Ra7 {[%emt 0:0:1]} 97. Kg6 {[%emt 0:0:4]} Rg7+ {[%emt 0:0:2]} 98. Kf6 {[%emt 0:0:0]} Rf7+ {[%emt 0:0:1]} 99. Kg5 {[%emt 0:0:1]} Ra7 {[%emt 0:0:1]} 100. Re6 {[%emt 0:0:1]} Kh7 {[%emt 0:0:2]} 101. Kf6 {[%emt 0:0:3]} Ra8 {[%emt 0:0:2]} 102. Kf7 {[%emt 0:0:2]} Rb8 {[%emt 0:0:3]} 103. f6 {[%emt 0:0:4]} Ra8 {[%emt 0:0:0]} 104. Re8 {[%emt 0:0:1]} Ra7+ {[%emt 0:0:7]} 105. Kf8 {[%emt 0:0:1]} Kh6 {[%emt 0:0:4]} 106. f7 {[%emt 0:0:1]} Kh7 {[%emt 0:0:1]} 107. Re6 {[%emt 0:0:5]} Ra8+ {[%emt 0:0:2]} 108. Ke7 {[%emt 0:0:1]} Ra7+ {[%emt 0:0:4]} 109. Kf6 {[%emt 0:0:1]} Ra8 {[%emt 0:0:2]} 110. Re8 {[%emt 0:0:1]} Ra6+ {[%emt 0:0:1]} 111. Ke5 {[%emt 0:0:0]} Ra5+ {[%emt 0:0:1]} 112. Kd4 {[%emt 0:0:1]} Ra4+ {[%emt 0:0:2]} 113. Kc5 {[%emt 0:0:1]} 1-0

[Event "Biel Festival Masters Blitz 2024"]
[White "Martirosyan,Haik M."]
[Black "Keymer,Vincent"]
[Site "Biel"]
[Round "5.3"]
[Annotator "TA"]
[Result "1-0"]
[Date "2024.07.21"]
[WhiteElo "2662"]
[BlackElo "2721"]
[PlyCount "127"]
[TimeControl "180+2"]

{[%evp 58,127,0,-205,-198,-202,-202,-192,0,-6,-15,-14,-8,-8,378,388,398,389,383,375,352,0,29950,29951,29947,29951,6406,5581,5518,5089,1426,69,69,69,69,69,69,69,93,93,97,70,70,70,70,70,70,70,97,97,97,97,97,0,821,481,29975,29976,29976,29976,29976,29975,29967,509,29973,29973,29973,29975,29974,29975,29976,29975]} 1. d4 {[%emt 0:0:1]} Nf6 {[%emt 0:0:0]} 2. c4 {[%emt 0:0:0]} e6 {[%emt 0:0:1]} 3. Nf3 {[%emt 0:0:1]} d5 {[%emt 0:0:1]} 4. Nc3 {[%emt 0:0:1]} c6 {[%emt 0:0:0]} 5. Bg5 {[%emt 0:0:1]} h6 {[%emt 0:0:1]} 6. Bxf6 {[%emt 0:0:1]} Qxf6 {[%emt 0:0:1]} 7. e3 {[%emt 0:0:1]} g6 {[%emt 0:0:1]} 8. Bd3 {[%emt 0:0:1]} Bg7 {[%emt 0:0:11]} 9. O-O {[%emt 0:0:2]} dxc4 {[%emt 0:0:4]} 10. Bxc4 {[%emt 0:0:1]} Nd7 {[%emt 0:0:3]} 11. Re1 {[%emt 0:0:1]} O-O {[%emt 0:0:4]} 12. e4 {[%emt 0:0:1]} Qe7 {[%emt 0:0:3]} 13. e5 {[%emt 0:0:3]} Rd8 {[%emt 0:0:5]} 14. Qe2 {[%emt 0:0:1]} b5 {[%emt 0:0:2]} 15. Bd3 {[%emt 0:0:2]} Rb8 {[%emt 0:0:1]} 16. Rac1 {[%emt 0:0:8]} c5 {[%emt 0:0:43]} 17. Nxb5 {[%emt 0:0:7]} Bb7 {[%emt 0:0:0]} 18. Nd6 {[%emt 0:0:37]} Bxf3 {[%emt 0:0:19]} 19. Qxf3 {[%emt 0:0:26]} cxd4 {[%emt 0:0:1]} 20. Nc4 {[%emt 0:0:1]} Rbc8 {[%emt 0:0:33]} 21. Qe2 {[%emt 0:0:38]} Nb6 {[%emt 0:0:44]} 22. Na5 {[%emt 0:0:30]} Rxc1 {[%emt 0:0:5]} 23. Rxc1 {[%emt 0:0:1]} Qg5 {[%emt 0:0:1]} 24. Re1 {[%emt 0:0:2]} Nd5 {[%emt 0:0:19]} 25. g3 {[%emt 0:0:7]} Nf4 {[%emt 0:0:18]} 26. Qf3 {[%emt 0:0:7]} Nxd3 {[%emt 0:0:1]} 27. Qxd3 {[%emt 0:0:1]} Bxe5 {[%emt 0:0:5]} 28. Nc6 {[%emt 0:0:3]} Rd5 {[%emt 0:0:1]} 29. Nxa7 {[%emt 0:0:23]} Qf5 {[%emt 0:0:0]} (29... Rc5 $17 30. h4 Qf5 31. Qxf5 gxf5 32. b4 )30. Re4 $2 {[%emt 0:0:4]} (30. Qxf5 $11 {and White is okay.} gxf5 31. Kf1 )Rc5 $19 {[%emt 0:0:4]} 31. a4 {[%emt 0:0:11]} Rc1+ {[%emt 0:0:7]} 32. Kg2 {[%emt 0:0:1] [#]} Rd1 $2 {[%emt 0:0:1]} (32... Re1 33. f3 Ra1 34. Nb5 $17 )(32... Bg7 $3 $19 {[%mdl 512] Hoping for ...Ra1.} 33. Nb5 (33. f3 Qd5 )Qd5 )33. Qxd1 {[%emt 0:0:8]} Qxe4+ {[%emt 0:0:1]} 34. Qf3 {[%emt 0:0:1]} Qc2 {[%emt 0:0:4]} (34... Qxf3+ 35. Kxf3 d3 36. Nc6 (36. b4 Bd4 $14 )Bxb2 37. Ke3 $18 )35. Nc6 {[%emt 0:0:4]} Bg7 $2 {[%emt 0:0:3][%mdl 8192] [#]} (35... Bc7 $11 )36. a5 $1 $18 {[%emt 0:0:4]} d3 {[%emt 0:0:2]} 37. a6 {[%emt 0:0:7]} d2 {[%emt 0:0:2]} 38. a7 {[%emt 0:0:1]} d1=Q {[%emt 0:0:3] [#]} 39. a8=Q+ $2 {[%emt 0:0:1]} ({White must play} 39. Ne7+ $1 $18 Kf8 (39... Kh7 40. Qxd1 Qxd1 41. a8=Q $18 )40. Nxg6+ (40. a8=B Qxf3+ 41. Bxf3 Bd4 42. Kh3 Kxe7 43. Bh1 Qxf2 44. Be4 Qf1+ 45. Bg2 Qf5+ 46. g4 Qd3+ )Ke8 41. a8=Q+ (41. a8=B $2 Qxf3+ 42. Kxf3 Qxg6 $19 )Qd8 42. Qxd8+ Kxd8 43. Qxf7 Qc6+ 44. Kh3 Bxb2 45. Nh4 )Kh7 $2 {[%emt 0:0:0][%mdl 8192]} (39... Bf8 $11 )40. Qxd1 {[%emt 0:0:3]} Qxd1 {[%emt 0:0:1]} 41. Ne7 {[%emt 0:0:1]} h5 {[%emt 0:0:4]} 42. Qg8+ {[%emt 0:0:1]} Kh6 {[%emt 0:0:0]} 43. Qxf7 {[%emt 0:0:2]} Qc2 {[%emt 0:0:3]} 44. b4 $2 {[%emt 0:0:4]} (44. Qxe6 Bxb2 45. Qe3+ Kg7 $11 )(44. h4 $18 )Qe4+ $14 {[%emt 0:0:0]} 45. Qf3 {[%emt 0:0:3]} Qxb4 {[%emt 0:0:2]} 46. Qe3+ {[%emt 0:0:2]} (46. Ng8+ Kh7 47. Nf6+ Kh8 $15 (47... Bxf6 48. Qxf6 Qb7+ 49. Qf3 $11 ))Kh7 {[%emt 0:0:3]} 47. Qxe6 {[%emt 0:0:1]} Qb1 {[%emt 0:0:4]} 48. h4 {[%emt 0:0:2]} Qd3 {[%emt 0:0:1]} 49. Qf7 {[%emt 0:0:2]} Qe4+ {[%emt 0:0:1]} 50. Kg1 {[%emt 0:0:1]} Qb1+ {[%emt 0:0:2]} 51. Kh2 $1 {[%emt 0:0:1]} Qc2 {[%emt 0:0:3]} 52. Nd5 {[%emt 0:0:1]} Qb2 {[%emt 0:0:2]} 53. Kg2 {[%emt 0:0:4]} Qd4 {[%emt 0:0:1]} 54. Nf4 {[%emt 0:0:1]} Qe4+ {[%emt 0:0:1]} 55. Kg1 {[%emt 0:0:1]} ({White should play} 55. Kh2 $16 {Ne6 would kill now.} Qf5 56. Qxf5 gxf5 57. Nxh5 )Qb1+ $2 {[%emt 0:0:1][%mdl 8192]} (55... Qe1+ $11 56. Kg2 Qe4+ 57. Kh2 Qf5 58. Qxf5 gxf5 59. Nxh5 Bh8 )56. Kh2 $18 {[%emt 0:0:0]} Qc2 {[%emt 0:0:2]} (56... Qf5 $18 57. Qxf5 gxf5 58. Nxh5 Be5 )57. Ne6 {[%emt 0:0:2]} Qb2 {[%emt 0:0:1]} 58. Kg2 {[%emt 0:0:4]} Kh6 {[%emt 0:0:3]} 59. Qf4+ {[%emt 0:0:3]} Kh7 {[%emt 0:0:1]} 60. Ng5+ {[%emt 0:0:0]} (60. Qc7 $142 g5 61. hxg5 (61. Nxg5+ Kh6 $18 )Kg6 62. Nf4+ Kh7 63. Qf7 (63. Nxh5 Kg6 $18 )Qe5 64. Ne6 (64. Nxh5 Qxg5 65. Qxg7+ Qxg7 66. Nxg7 Kxg7 67. Kf3 Kg8 68. Kf4 Kf8 )Kh8 65. g6 (65. Qxh5+ Kg8 $18 ))Kh8 {[%emt 0:0:1]} (60... Kh6 $18 61. Ne6+ Kh7 )61. Qe4 {[%emt 0:0:5]} Qf6 {[%emt 0:0:6]} 62. Qe8+ {[%emt 0:0:1]} Bf8 {[%emt 0:0:5]} 63. Ne6 {[%emt 0:0:5]} Kg8 {[%emt 0:0:2]} 64. Nxf8 {[%emt 0:0:2]} 1-0

[Event "Biel Festival Masters Blitz 2024"]
[White "Mishra,Abhimanyu"]
[Black "Keymer,Vincent"]
[Site "Biel"]
[Round "6.1"]
[Annotator "TA"]
[Result "0-1"]
[Date "2024.07.21"]
[WhiteElo "2627"]
[BlackElo "2721"]
[PlyCount "220"]
[TimeControl "180+2"]

{[%evp 146,220,-1804,-29944,-12579,-12848,-29942,-29954,-29955,-29954,-29949,-29950,-29949,-29954,-29952,-29952,-29951,-29959,-29960,-29961,-29962,-29961,-29963,-29966,-29964,-29963,-29963,-29964,-29963,-29963,-29962,-29964,-29966,-29966,-29966,-29967,-29968,-29968,-29969,-29968,-29970,-29970,-29971,-29971,-29971,-29976,-29973,-29972,-29970,-29972,-29973,-29973,-29972,-29974,-29975,-29975,-29965,-29984,-29977,-29977,-29977,-29980,-29981,-29981,-29982,-29982,-29983,-29986,-29987,-29988,-29989,-29990,-29991,-29996,-29997,-29997,-29998]} 1. e4 {[%emt 0:0:1]} e5 {[%emt 0:0:2]} 2. Nf3 {[%emt 0:0:1]} Nc6 {[%emt 0:0:1]} 3. Bc4 {[%emt 0:0:1]} Nf6 {[%emt 0:0:2]} 4. d3 {[%emt 0:0:1]} Bc5 {[%emt 0:0:1]} 5. c3 {[%emt 0:0:1]} a6 {[%emt 0:0:1]} 6. O-O {[%emt 0:0:1]} Ba7 {[%emt 0:0:0]} 7. a4 {[%emt 0:0:1] 7.Re1 is the recent fashion. C54: Giuoco Piano: 4 c3 Nf6, main lines with 5 d4 and 5 d3.} d6 {[%emt 0:0:2]} 8. Re1 {[%emt 0:0:1]} O-O {[%emt 0:0:1]} 9. h3 {[%emt 0:0:1]} h6 {[%emt 0:0:2]} 10. Nbd2 {[%emt 0:0:1]} Be6 {[%emt 0:0:1]} 11. Bxe6 {[%emt 0:0:9]} fxe6 {[%emt 0:0:1]} 12. b4 {[%emt 0:0:8]} Ne7 {[%emt 0:0:1]} 13. Nf1 {[%emt 0:0:5]} Ng6 {[%emt 0:0:1]} 14. Ra2 {[%emt 0:0:7]} d5 $5 {[%emt 0:0:2][%mdl 4] Exploring less charted territory.} 15. Qc2 $146 {[%emt 0:0:2]} ({Predecessor:} 15. Qe2 Qd6 16. c4 dxc4 17. dxc4 a5 18. bxa5 Bc5 19. Bd2 Qc6 20. Rb2 b6 21. Rb5 {½-½ Carlsen,M (2830)-Keymer,V (2726) Chess.com Classic Div 1 W rapid 2024 (3.1)} )c6 {[%emt 0:0:35]} 16. c4 {[%emt 0:0:27]} a5 {[%emt 0:0:15]} 17. bxa5 {[%emt 0:0:18]} d4 {[%emt 0:0:5]} 18. N1h2 {[%emt 0:0:19]} Qxa5 {[%emt 0:0:15]} 19. Bd2 {[%emt 0:0:1]} Qc7 {[%emt 0:0:4]} 20. a5 {[%emt 0:0:13]} Bc5 {[%emt 0:0:4]} 21. Rb1 {[%emt 0:0:2]} Ra7 {[%emt 0:0:12]} 22. g3 {[%emt 0:0:7]} Qe7 {[%emt 0:0:22]} 23. Rab2 {[%emt 0:0:3]} Bd6 {[%emt 0:0:13]} 24. Kg2 {[%emt 0:0:5]} Rb8 {[%emt 0:0:2]} 25. Ng4 {[%emt 0:0:8]} Nd7 {[%emt 0:0:4]} 26. h4 {[%emt 0:0:7]} Qe8 {[%emt 0:0:29]} 27. Bb4 {[%emt 0:0:31]} Bc7 {[%emt 0:0:5]} 28. Bd2 {[%emt 0:0:11]} Ne7 {[%emt 0:0:5]} 29. Ra2 {[%emt 0:0:12]} Kh8 {[%emt 0:0:10]} 30. Qc1 {[%emt 0:0:5]} Ng8 {[%emt 0:0:1]} 31. Ngh2 {[%emt 0:0:8]} Qd8 {[%emt 0:0:3]} 32. Rba1 {[%emt 0:0:6]} Rba8 {[%emt 0:0:2]} 33. Qb1 {[%emt 0:0:6]} Ngf6 {[%emt 0:0:7]} 34. Bb4 {[%emt 0:0:5]} Qe8 {[%emt 0:0:12]} 35. Nf1 {[%emt 0:0:2]} Qg6 {[%emt 0:0:2]} 36. N1d2 {[%emt 0:0:3]} c5 {[%emt 0:0:2]} 37. Ba3 {[%emt 0:0:4]} Bxa5 {[%emt 0:0:13]} 38. Bc1 {[%emt 0:0:2]} b6 {[%emt 0:0:5]} 39. Nb3 {[%emt 0:0:5]} Rf8 {[%emt 0:0:2]} 40. Nxa5 {[%emt 0:0:4]} bxa5 {[%emt 0:0:1]} 41. Rxa5 {[%emt 0:0:1]} Rxa5 {[%emt 0:0:3]} 42. Rxa5 {[%emt 0:0:1]} Qg4 {[%emt 0:0:5]} 43. Nh2 {[%emt 0:0:5]} Qd1 {[%emt 0:0:1]} 44. Ra2 {[%emt 0:0:3]} Ng4 {[%emt 0:0:6]} 45. Nxg4 {[%emt 0:0:2]} Qxg4 {[%emt 0:0:1]} 46. Qc2 {[%emt 0:0:3]} Qf3+ {[%emt 0:0:2]} 47. Kg1 {[%emt 0:0:1]} Qf7 {[%emt 0:0:6]} 48. Ra7 {[%emt 0:0:2]} Qe8 {[%emt 0:0:2]} 49. Qa4 {[%emt 0:0:3]} Qf7 {[%emt 0:0:3]} 50. f4 {[%emt 0:0:2]} Qg6 {[%emt 0:0:1]} 51. Qxd7 {[%emt 0:0:3]} Qxg3+ {[%emt 0:0:1]} 52. Kh1 {[%emt 0:0:2]} Qh3+ {[%emt 0:0:2]} 53. Kg1 {[%emt 0:0:1]} Qg3+ {[%emt 0:0:0]} 54. Kf1 {[%emt 0:0:2]} exf4 {[%emt 0:0:4]} 55. Qe7 {[%emt 0:0:3]} Rg8 {[%emt 0:0:0]} 56. Qxe6 {[%emt 0:0:2]} Qxd3+ {[%emt 0:0:2]} 57. Kg1 {[%emt 0:0:2]} Qd1+ {[%emt 0:0:1]} 58. Kg2 {[%emt 0:0:2]} Qxc1 {[%emt 0:0:1]} 59. Qg4 {[%emt 0:0:2]} Qd2+ {[%emt 0:0:1]} 60. Kh3 {[%emt 0:0:2]} Qe3+ {[%emt 0:0:1]} 61. Kh2 {[%emt 0:0:1]} d3 {[%emt 0:0:4]} 62. Rd7 {[%emt 0:0:1]} d2 {[%emt 0:0:1]} 63. Kg2 {[%emt 0:0:2]} Qxe4+ {[%emt 0:0:3]} 64. Qf3 {[%emt 0:0:1]} Qxc4 {[%emt 0:0:5]} 65. Rxd2 {[%emt 0:0:2]} Rb8 {[%emt 0:0:2]} 66. Rf2 {[%emt 0:0:2]} Kh7 {[%emt 0:0:4]} 67. Qg4 {[%emt 0:0:4]} Qd5+ {[%emt 0:0:1]} 68. Kh2 {[%emt 0:0:1]} Qe5 {[%emt 0:0:1]} 69. Qf3 {[%emt 0:0:2]} Qe3 {[%emt 0:0:3]} 70. Qxf4 {[%emt 0:0:2]} Qxf4+ {[%emt 0:0:1]} 71. Rxf4 {[%emt 0:0:1]} Rb4 {[%emt 0:0:1]} 72. Rf5 {[%emt 0:0:1]} Rxh4+ {[%emt 0:0:1]} 73. Kg3 {[%emt 0:0:1]} Rc4 {[%emt 0:0:1]} (73... g5 $142 74. Rxc5 Kg6 75. Rb5 Kh5 76. Rb1 Rg4+ 77. Kf2 Rc4 78. Kg2 Rc2+ 79. Kf3 Rc3+ 80. Kf2 g4 81. Rh1+ Kg5 82. Rb1 h5 83. Ra1 Rc2+ 84. Ke3 Rc4 85. Rb1 Rf4 86. Rb7 Rf1 (86... Rf3+ $2 87. Ke4 $19 )87. Kd4 g3 88. Rg7+ Kh4 89. Kd3 Rf4 90. Rb7 g2 91. Rb1 Rf1 92. Rb4+ Kh3 93. Rc4 g1=Q (93... g1=B $2 94. Ke2 $19 )94. Rc3 Qg4 (94... Rf3+ {gets mated.} 95. Kc2 Qg6+ 96. Kb3 Qe6+ 97. Kb4 Qb6+ 98. Kc4 Qc6+ 99. Kb4 Rxc3 100. Ka5 Rc5+ 101. Kb4 Qb6+ 102. Ka4 Ra5# )95. Kc2+ Kh4 96. Rc7 Qe4+ 97. Kb3 )74. Rd5 {[%emt 0:0:2]} Rc1 {[%emt 0:0:2]} (74... Rd4 $142 75. Rxc5 Kg6 76. Rc6+ Kh5 77. Rc1 g5 78. Rh1+ Kg6 79. Ra1 Rd3+ 80. Kg2 g4 81. Rh1 Rd2+ 82. Kg3 Kg5 83. Re1 Rd3+ 84. Kf2 h5 85. Re4 Kh4 86. Ke2 Rf3 87. Ra4 Rf8 88. Re4 Kh3 89. Re5 h4 90. Re7 g3 91. Kd3 g2 92. Re3+ Kg4 93. Re6 h3 (93... g1=B 94. Rg6+ Kf3 95. Rxg1 $19 )94. Re4+ Rf4 95. Re7 h2 (95... g1=B 96. Rg7+ Kf3 97. Rxg1 $19 )96. Ke2 g1=Q (96... g1=B {leads to mate.} 97. Rh7 Kg3 98. Kd2 Rh4 99. Rg7+ Kh3 100. Rd7 h1=Q 101. Rd3+ Kh2 102. Rd8 Bb6 103. Rd6 Qg2+ 104. Kd1 Rd4+ 105. Rxd4 Bxd4 106. Kc1 Qe2 107. Kb1 Qb2# )97. Rg7+ Kh3 98. Rh7+ Rh4 99. Rf7 Re4+ (99... h1=B {is a self mate.} 100. Re7 Re4+ 101. Rxe4 Bxe4 102. Kd2 Qd4+ 103. Ke2 Bc2 104. Kf1 Kg3 105. Ke2 Qf2# )(99... h1=Q 100. Rf3+ Kg2 101. Rg3+ Kxg3 102. Kd3 Qf3+ 103. Kd2 Rh2# )100. Kd2 Qd4+ (100... h1=N 101. Rh7+ Kg2 102. Rg7+ Ng3 103. Rxg3+ Kxg3 104. Kc3 Qd4+ 105. Kc2 Re2+ 106. Kb3 Rb2+ 107. Ka3 Qb4# )101. Kc2 Re2+ (101... h1=B 102. Rh7+ Kg3 103. Rg7+ Qxg7 104. Kd3 Qd4+ 105. Kc2 Re2+ 106. Kb3 Rb2+ 107. Ka3 Qb4# )102. Kb3 Rb2+ 103. Ka3 Qb4# )75. Kf4 {[%emt 0:0:3]} c4 {[%emt 0:0:2]} 76. Rc5 {[%emt 0:0:1]} c3 {[%emt 0:0:2]} 77. Kg3 {[%emt 0:0:1]} Re1 {[%emt 0:0:7]} 78. Rxc3 {[%emt 0:0:1]} Re6 {[%emt 0:0:1]} 79. Rc5 {[%emt 0:0:2]} Kg6 {[%emt 0:0:1]} 80. Kg4 {[%emt 0:0:1]} Ra6 {[%emt 0:0:4]} 81. Rc4 {[%emt 0:0:1]} h5+ {[%emt 0:0:1]} 82. Kf3 {[%emt 0:0:3]} Kh6 {[%emt 0:0:1]} 83. Rc8 {[%emt 0:0:3]} g6 {[%emt 0:0:0]} 84. Rc5 {[%emt 0:0:2]} Ra4 {[%emt 0:0:2]} 85. Rc8 {[%emt 0:0:3]} Rd4 {[%emt 0:0:2]} 86. Rc6 {[%emt 0:0:2]} Rd5 {[%emt 0:0:1]} 87. Kf4 {[%emt 0:0:2]} Rf5+ {[%emt 0:0:1]} 88. Kg3 {[%emt 0:0:2]} Kg5 {[%emt 0:0:1]} 89. Rc3 {[%emt 0:0:1]} Ra5 {[%emt 0:0:2]} 90. Kh3 {[%emt 0:0:2]} h4 {[%emt 0:0:2]} 91. Rc6 {[%emt 0:0:3]} Kh5 {[%emt 0:0:3]} 92. Rc8 {[%emt 0:0:1]} Ra3+ {[%emt 0:0:1]} 93. Kh2 {[%emt 0:0:2]} g5 {[%emt 0:0:1]} 94. Rc5 {[%emt 0:0:3]} Rd3 {[%emt 0:0:3]} 95. Rc8 {[%emt 0:0:3]} Rf3 {[%emt 0:0:2]} 96. Rc4 {[%emt 0:0:5]} Rf4 {[%emt 0:0:1]} 97. Rc1 {[%emt 0:0:2]} Rf2+ {[%emt 0:0:1]} 98. Kg1 {[%emt 0:0:2]} Ra2 {[%emt 0:0:5]} 99. Rc4 {[%emt 0:0:1]} h3 {[%emt 0:0:1]} 100. Kh1 {[%emt 0:0:3]} g4 {[%emt 0:0:1]} 101. Rc8 {[%emt 0:0:3]} Kh4 {[%emt 0:0:1]} 102. Rc4 {[%emt 0:0:1]} Rf2 {[%emt 0:0:4]} 103. Rd4 {[%emt 0:0:4]} Kg3 {[%emt 0:0:3]} 104. Rd3+ {[%emt 0:0:1]} Rf3 {[%emt 0:0:2]} 105. Rd1 {[%emt 0:0:0]} Ra3 {[%emt 0:0:5]} 106. Rg1+ {[%emt 0:0:2]} Kh4 {[%emt 0:0:2]} 107. Rc1 {[%emt 0:0:2]} g3 {[%emt 0:0:2]} 108. Kg1 {[%emt 0:0:1]} Kg4 {[%emt 0:0:3]} 109. Rf1 {[%emt 0:0:3]} h2+ {[%emt 0:0:5]} 110. Kh1 {[%emt 0:0:4]} Kh3 {[%emt 0:0:1]} 0-1